fUST/lending_fUST_20240116
["ID","MTS","AMOUNT","RATE_DAILY","PERIOD"]
[311717408,1705350644421,-501.6604041,0.0003041,2]
[311717409,1705350644430,-242.89215293,0.0003041,2]
[311717410,1705350644440,-500.0,0.0003041,2]
[311717411,1705350644449,-893.67,0.0003041,2]
[311717412,1705350644458,-500.0,0.0003041,2]
[311717413,1705350644467,-500.0,0.0003041,2]
[311717414,1705350644476,-500.0,0.0003041,2]
[311717415,1705350644489,-500.0,0.0003041,2]
[311717416,1705350644498,-848.07,0.0003041,2]
[311717417,1705350644508,-624.39,0.0003041,2]
[311717418,1705350644517,-3070.13,0.0003041,2]
[311717419,1705350644526,-221.65303753,0.0003041,2]
[311717420,1705350644535,-500.0,0.0003041,2]
[311717421,1705350644545,-500.0,0.0003041,2]
[311717422,1705350644554,-500.0,0.0003041,2]
[311717423,1705350644563,-997.51,0.0003041,2]
[311717424,1705350644573,-500.0,0.0003041,2]
[311717425,1705350644582,-500.0,0.0003041,2]
[311717426,1705350644591,-500.0,0.0003041,2]
[311717427,1705350644600,-495.92557,0.0003041,2]
[311717428,1705350644609,-495.92557,0.0003041,2]
[311717429,1705350644619,-500.0,0.00030599,2]
[311717430,1705350644628,-1500.0,0.000306,2]
[311717431,1705350644637,-200.0,0.00030626,15]
[311717432,1705350644646,-219.84,0.0003066,30]
[311717433,1705350644655,-4799.0,0.0003066,30]
[311717434,1705350644664,-150.5,0.0003067,30]
[311717435,1705350644673,-4799.0,0.0003067,30]
[311717436,1705350644683,-150.5,0.0003068,30]
[311717437,1705350644692,-4799.0,0.0003068,30]
[311717438,1705350644701,-500.0,0.00030681,2]
[311717439,1705350644710,-1221.14074006,0.00030682,4]
[311717440,1705350644719,-360.90387838,0.00030682,2]
[311717441,1705350644729,-191.10838986,0.00030682,4]
[311717442,1705350644737,-166.70935578,0.00030682,4]
[311717443,1705350644747,-1240.5015561,0.00030682,4]
[311717444,1705350644756,-164.31941956,0.00030682,4]
[311717445,1705350644765,-322.94976484,0.00030682,4]
[311717446,1705350644774,-219.69877227,0.00030682,4]
[311717447,1705350644783,-309.79865023,0.00030682,4]
[311717448,1705350644794,-1185.90642814,0.00030682,4]
[311717449,1705350644804,-1745.33217549,0.00030682,4]
[311717450,1705350644813,-155.37644244,0.00030682,4]
[311717451,1705350644822,-6364.75865863,0.00030682,4]
[311717452,1705350644832,-155.20695697,0.00030682,4]
[311717453,1705350644841,-525.7882447,0.00030682,4]
[311717454,1705350644850,-264.9672714,0.00030682,4]
[311717455,1705350644860,-242.67449373,0.00030682,4]
[311717456,1705350644869,-466.82403981,0.00030682,4]
[311717457,1705350644878,-9101.41782451,0.00030682,4]
[311717458,1705350644888,-586.6153228,0.00030682,4]
[311717459,1705350644897,-19835.34944112,0.00030683,4]
[311717460,1705350644906,-212.25,0.00030683,2]
[311717461,1705350644915,-500.0,0.00030683,2]
[311717462,1705350644924,-500.0,0.00030683,2]
[311717463,1705350644933,-263.23548355,0.00030683,2]
[311717464,1705350644942,-500.0,0.00030684,2]
[311717465,1705350644952,-500.0,0.00030684,2]
[311717466,1705350644961,-196.81231801,0.00030684,2]
[311717467,1705350645651,-2454.18896115,0.00029314,2]
[311717468,1705350645661,-500.0,0.00030136,2]
[311717469,1705350645670,-151.0,0.00030409,2]
[311717470,1705350645680,-151.0,0.00030409,2]
[311717471,1705350645689,-151.0,0.00030409,2]
[311717472,1705350645698,-151.0,0.00030409,2]
[311717473,1705350645707,-500.0,0.0003041,2]
[311717474,1705350645716,-344.77768199,0.00030684,2]
[311717475,1705350645724,-500.0,0.00030684,2]
[311717476,1705350645734,-667.23,0.00030684,2]
[311717477,1705350645743,-99.28274634,0.00030684,2]
[311717478,1705350645755,-971.81725366,0.00030684,2]
[311717479,1705350645765,-500.0,0.00030684,2]
[311717480,1705350645774,-500.0,0.00030684,2]
[311717481,1705350645783,-636.21,0.00030684,2]
[311717482,1705350645792,-500.0,0.00030684,2]
[311717483,1705350645801,-550.28296109,0.00030684,2]
[311717484,1705350645810,-500.0,0.00030684,2]
[311717485,1705350645819,-465.08361525,0.00030684,2]
[311717490,1705350645923,-500.0,0.00030136,2]
[311717491,1705350645932,-500.0,0.00030136,2]
[311717492,1705350645942,-228.84245233,0.0003041,2]
[311717502,1705350646328,-0.81047355,0.00027121,4]
[311717504,1705350646340,-154.15853265,0.00027121,4]
[311717506,1705350646348,-100.83754767,0.0003041,2]
[311717507,1705350646358,-591.75391968,0.00030682,2]
[311717601,1705351838714,-500.0,0.00026968,2]
[311717603,1705351838724,-154.9690062,0.00026969,4]
[311717605,1705351838733,-66.0367723,0.00026969,2]
[311717611,1705351838785,-19609.92321299,0.00026969,2]
[311717613,1705351838794,-1222.03199723,0.00026969,2]
[311717615,1705351838803,-20848.89855073,0.0002697,2]
[311717617,1705351838812,-24900.0,0.00026973,2]
[311717619,1705351838824,-166.666666,0.00027452,2]
[311717621,1705351838832,-2318.34,0.00027574,3]
[311717623,1705351838841,-1931.95,0.00027574,3]
[311717625,1705351838850,-2782.0,0.00027584,3]
[311717627,1705351838860,-6264.74650484,0.00027614,2]
[311717629,1705351838869,-410.1520012,0.00028,2]
[311717630,1705351838878,-283.26871392,0.000285,2]
[311717632,1705351838887,-198.8577961,0.00029,2]
[311717634,1705351838896,-200.0,0.00029666,15]
[311717636,1705351838905,-2816.43494128,0.00029735,3]
[311717638,1705351838914,-2454.18896115,0.00029751,2]
[311717640,1705351838923,-13023.90998464,0.00029752,3]
[311717642,1705351838932,-5000.0,0.00029752,5]
[311717644,1705351838942,-5000.0,0.00029752,5]
[311717646,1705351838951,-5000.0,0.00029752,5]
[311717648,1705351838960,-155.01395126,0.00029804,2]
[311717650,1705351838969,-1745.33217549,0.00029834,2]
[311717652,1705351838979,-466.82403981,0.00029834,2]
[311717654,1705351838988,-525.7882447,0.00029834,2]
[311717656,1705351839000,-166.70935578,0.00029834,2]
[311717658,1705351839009,-242.67449373,0.00029834,2]
[311717660,1705351839018,-586.6153228,0.00029834,2]
[311717662,1705351839027,-309.79865023,0.00029834,2]
[311717663,1705351839036,-1185.90642814,0.00029834,2]
[311717665,1705351839045,-322.94976484,0.00029834,2]
[311717667,1705351839055,-191.10838986,0.00029834,2]
[311717669,1705351839063,-264.9672714,0.00029834,2]
[311717671,1705351839073,-155.37644244,0.00029834,2]
[311717673,1705351839083,-164.31941956,0.00029834,2]
[311717675,1705351839092,-155.20695697,0.00029834,2]
[311717677,1705351839101,-1240.5015561,0.00029834,2]
[311717679,1705351839111,-360.90387838,0.00029834,2]
[311717681,1705351839120,-451.49328758,0.00029834,2]
[311717683,1705351839129,-155.01395126,0.00029834,2]
[311717685,1705351839138,-343.80031935,0.00029834,2]
[311717687,1705351839147,-515.17636802,0.00029834,2]
[311717689,1705351839157,-1694.17346883,0.00029834,2]
[311717691,1705351839166,-594.2143433,0.00029834,2]
[311717693,1705351839175,-319.84377001,0.00029834,2]
[311717695,1705351839184,-166.39764695,0.00029834,2]
[311717697,1705351839193,-875.01165605,0.00029834,2]
[311717699,1705351839202,-2030.29653603,0.00029834,2]
[311717701,1705351839212,-849.56233299,0.00029834,2]
[311717703,1705351839221,-615.80248759,0.00029834,2]
[311717705,1705351839230,-155.01395126,0.00029834,2]
[311717706,1705351839239,-216.49155598,0.00029834,2]
[311717709,1705351839249,-174.94849142,0.00029834,2]
[311717710,1705351839258,-19835.34944112,0.00029835,2]
[311717712,1705351839267,-137935.08317447,0.00029836,2]
[311717714,1705351839276,-5000.0,0.00029982,5]
[311717716,1705351839287,-1413.42859915,0.0003,2]
[311717718,1705351839296,-297.8809135,0.0003,4]
[311717720,1705351839305,-3757.35908,0.0003,2]
[311717722,1705351839315,-212.0,0.0003,2]
[311717724,1705351839326,-50000.0,0.0003005,4]
[311717726,1705351839336,-5656.01141166,0.00030134,4]
[311717728,1705351839345,-555.71650941,0.00030136,2]
[311717730,1705351839355,-500.0,0.00030136,2]
[311717732,1705351839364,-500.0,0.00030136,2]
[311717733,1705351839373,-500.0,0.00030136,2]
[311717734,1705351839382,-500.0,0.00030136,2]
[311717735,1705351839391,-500.0,0.00030136,2]
[311717736,1705351839400,-575.45,0.00030136,2]
[311717737,1705351839409,-500.0,0.00030136,2]
[311717738,1705351839417,-500.0,0.00030136,2]
[311717739,1705351839426,-500.0,0.00030136,2]
[311717740,1705351839435,-500.0,0.00030136,2]
[311717741,1705351839444,-500.0,0.00030136,2]
[311717742,1705351839453,-500.0,0.00030136,2]
[311717743,1705351839461,-500.0,0.00030136,2]
[311717744,1705351839470,-571.08,0.00030136,2]
[311717745,1705351839478,-500.0,0.00030136,2]
[311717746,1705351839487,-500.0,0.00030136,2]
[311717747,1705351839496,-388.5668798,0.00030136,2]
[311717748,1705351839505,-500.0,0.00030136,2]
[311717749,1705351839513,-500.0,0.00030136,2]
[311717750,1705351839522,-222.29192592,0.00030136,2]
[311717751,1705351839531,-500.0,0.00030136,2]
[311717752,1705351839540,-500.0,0.00030136,2]
[311717753,1705351839549,-500.0,0.00030136,2]
[311717754,1705351839558,-500.0,0.00030136,2]
[311717755,1705351839568,-500.0,0.00030136,2]
[311717756,1705351839577,-500.0,0.00030136,2]
[311717757,1705351839586,-364.42439101,0.00030136,2]
[311717758,1705351839595,-500.0,0.00030136,2]
[311717759,1705351839603,-500.0,0.00030136,2]
[311717760,1705351839612,-506.78614687,0.00030136,2]
[311717761,1705351839620,-500.0,0.00030136,2]
[311717762,1705351839629,-500.0,0.00030136,2]
[311717763,1705351839637,-500.0,0.00030136,2]
[311717764,1705351839646,-1710.12,0.00030136,2]
[311717765,1705351839655,-1000.0,0.00030136,2]
[311717766,1705351839663,-500.0,0.00030136,2]
[311717767,1705351839672,-500.0,0.00030136,2]
[311717768,1705351839681,-500.0,0.00030136,2]
[311717769,1705351839690,-500.0,0.00030136,2]
[311717770,1705351839699,-537.38332628,0.00030136,2]
[311717771,1705351839707,-763.39,0.00030136,2]
[311717772,1705351839716,-500.0,0.00030136,2]
[311717773,1705351839725,-500.0,0.00030136,2]
[311717774,1705351839734,-232.81777432,0.00030136,2]
[311717775,1705351839743,-500.0,0.00030136,2]
[311717776,1705351839752,-500.0,0.00030136,2]
[311717777,1705351839761,-500.0,0.00030136,2]
[311717778,1705351839770,-500.0,0.00030136,2]
[311717779,1705351839779,-500.0,0.00030136,2]
[311717780,1705351839788,-501.08375039,0.00030136,2]
[311717782,1705351839796,-500.0,0.00030136,2]
[311717783,1705351839805,-500.0,0.00030136,2]
[311717784,1705351839814,-150.0,0.00030136,2]
[311717785,1705351839824,-500.0,0.00030136,2]
[311717786,1705351839834,-608.56,0.00030136,2]
[311717787,1705351839843,-587.3,0.00030136,2]
[311717789,1705351839852,-500.80020563,0.00030136,2]
[311717791,1705351839861,-500.0,0.00030136,2]
[311717793,1705351839870,-500.0,0.00030136,2]
[311717795,1705351839879,-500.0,0.00030136,2]
[311717797,1705351839888,-500.0,0.00030136,2]
[311717799,1705351839897,-500.0,0.00030136,2]
[311717801,1705351839906,-500.0,0.00030136,2]
[311717803,1705351839915,-496.52210292,0.00030136,2]
[311717805,1705351839924,-523.30543752,0.00030136,2]
[311717807,1705351839933,-500.0,0.00030136,2]
[311717809,1705351839943,-500.0,0.00030136,2]
[311717811,1705351839952,-500.0,0.00030136,2]
[311717813,1705351839961,-500.0,0.00030136,2]
[311717815,1705351839970,-616.84550266,0.00030136,2]
[311717817,1705351839979,-500.0,0.00030136,2]
[311717819,1705351839989,-500.0,0.00030136,2]
[311717821,1705351839999,-500.0,0.00030136,2]
[311717823,1705351840008,-500.0,0.00030136,2]
[311717825,1705351840017,-500.0,0.00030136,2]
[311717827,1705351840026,-1016.52,0.00030136,2]
[311717829,1705351840035,-500.0,0.00030136,2]
[311717831,1705351840044,-500.0,0.00030136,2]
[311717832,1705351840053,-500.0,0.00030136,2]
[311717834,1705351840062,-500.0,0.00030136,2]
[311717836,1705351840073,-10000.0,0.00030136,10]
[311717838,1705351840082,-500.0,0.00030136,2]
[311717840,1705351840090,-1000.0,0.00030136,5]
[311717843,1705351840103,-197.25905233,0.00030136,2]
[311717844,1705351840112,-500.0,0.00030136,2]
[311717845,1705351840121,-602.94191662,0.00030136,2]
[311717846,1705351840131,-500.0,0.00030136,2]
[311717847,1705351840140,-602.05912595,0.00030136,2]
[311717848,1705351840149,-506.41801766,0.00030136,2]
[311717849,1705351840158,-500.0,0.00030136,2]
[311717850,1705351840167,-500.0,0.00030136,2]
[311717851,1705351840176,-500.0,0.00030136,2]
[311717852,1705351840185,-500.0,0.00030136,2]
[311717853,1705351840194,-500.0,0.00030136,2]
[311717854,1705351840203,-500.0,0.00030136,2]
[311717855,1705351840212,-500.0,0.00030136,2]
[311717856,1705351840221,-788.58,0.00030136,2]
[311717857,1705351840230,-500.0,0.00030136,2]
[311717858,1705351840239,-500.0,0.00030136,2]
[311717859,1705351840249,-500.0,0.00030136,2]
[311717860,1705351840258,-659.3,0.00030136,2]
[311717861,1705351840267,-500.0,0.00030136,2]
[311717862,1705351840276,-219.80773026,0.00030136,2]
[311717863,1705351840285,-500.0,0.00030136,2]
[311717864,1705351840294,-500.0,0.00030136,2]
[311717865,1705351840303,-500.0,0.00030136,2]
[311717866,1705351840313,-500.0,0.00030136,2]
[311717867,1705351840323,-500.0,0.00030136,2]
[311717868,1705351840401,-598.53355378,0.00030136,2]
[311717869,1705351840412,-500.0,0.00030136,2]
[311717870,1705351840422,-500.0,0.00030136,2]
[311717871,1705351840431,-500.0,0.00030136,2]
[311717872,1705351840441,-517.22036158,0.00030136,2]
[311717873,1705351840451,-500.0,0.00030136,2]
[311717874,1705351840460,-220.10757658,0.00030136,2]
[311717875,1705351840469,-500.0,0.00030136,2]
[311717876,1705351840479,-508.51230986,0.00030136,2]
[311717877,1705351840489,-500.0,0.00030136,2]
[311717878,1705351840499,-500.0,0.00030136,2]
[311717879,1705351840508,-500.0,0.00030136,2]
[311717880,1705351840517,-232.9672703,0.00030136,2]
[311717881,1705351840526,-500.0,0.00030136,2]
[311717882,1705351840536,-500.0,0.00030136,2]
[311717883,1705351840545,-500.0,0.00030136,2]
[311717884,1705351840555,-500.0,0.00030136,2]
[311717885,1705351840564,-500.0,0.00030136,2]
[311717886,1705351840575,-500.0,0.00030136,2]
[311717887,1705351840584,-500.0,0.00030136,2]
[311717888,1705351840593,-500.0,0.00030136,2]
[311717889,1705351840602,-500.0,0.00030136,2]
[311717890,1705351840611,-500.0,0.00030136,2]
[311717891,1705351840620,-795.25,0.00030136,2]
[311717892,1705351840629,-500.0,0.00030136,2]
[311717893,1705351840639,-500.0,0.00030136,2]
[311717894,1705351840648,-500.0,0.00030136,2]
[311717895,1705351840657,-500.0,0.00030136,2]
[311717896,1705351840666,-225.18716407,0.00030136,2]
[311717897,1705351840675,-500.0,0.00030136,2]
[311717898,1705351840684,-500.0,0.00030136,2]
[311717899,1705351840693,-500.0,0.00030136,2]
[311717900,1705351840702,-500.0,0.00030136,2]
[311717901,1705351840711,-500.0,0.00030136,2]
[311717902,1705351840720,-500.0,0.00030136,2]
[311717903,1705351840730,-500.0,0.00030136,2]
[311717905,1705351840739,-500.0,0.00030136,2]
[311717907,1705351840748,-500.0,0.00030136,2]
[311717909,1705351840757,-502.46645335,0.00030136,2]
[311717911,1705351840766,-500.0,0.00030136,2]
[311717913,1705351840775,-500.0,0.00030136,2]
[311717915,1705351840785,-500.0,0.00030136,2]
[311717917,1705351840794,-500.0,0.00030136,2]
[311717919,1705351840803,-500.0,0.00030136,2]
[311717921,1705351840812,-500.0,0.00030136,2]
[311717923,1705351840822,-500.0,0.00030136,2]
[311717925,1705351840831,-552.08581797,0.00030136,2]
[311717927,1705351840840,-500.85643977,0.00030136,2]
[311717929,1705351840849,-500.0,0.00030136,2]
[311717931,1705351840858,-500.0,0.00030136,2]
[311717933,1705351840868,-500.0,0.00030136,2]
[311717935,1705351840877,-1103.22,0.00030136,2]
[311717937,1705351840886,-500.0,0.00030136,2]
[311717939,1705351840895,-1172.47,0.00030136,2]
[311717941,1705351840904,-500.0,0.00030136,2]
[311717943,1705351840913,-2291.98,0.00030136,2]
[311717945,1705351840923,-500.0,0.00030136,2]
[311717947,1705351840931,-500.0,0.00030136,2]
[311717949,1705351840940,-612.49448976,0.00030136,2]
[311717951,1705351840949,-500.0,0.00030136,2]
[311717952,1705351840958,-504.39363086,0.00030136,2]
[311717954,1705351840967,-500.0,0.00030136,2]
[311717956,1705351840977,-253.24117854,0.00030136,2]
[311717958,1705351840991,-501.64420463,0.00030136,2]
[311717960,1705351841006,-500.0,0.00030136,2]
[311717962,1705351841017,-506.7967264,0.00030136,2]
[311717964,1705351841027,-2382.44,0.00030136,2]
[311717966,1705351841037,-500.0,0.00030136,2]
[311717968,1705351841046,-500.0,0.00030136,2]
[311717970,1705351841056,-1026.14,0.00030136,2]
[311717972,1705351841065,-168.08126236,0.00030136,2]
[311717974,1705351841075,-500.0,0.00030136,2]
[311717976,1705351841085,-500.0,0.00030136,2]
[311717978,1705351841094,-500.0,0.00030136,2]
[311717980,1705351841104,-600.75,0.00030136,2]
[311717982,1705351841113,-500.0,0.00030136,2]
[311717984,1705351841123,-500.0,0.00030136,2]
[311717986,1705351841132,-500.0,0.00030136,2]
[311717988,1705351841141,-500.0,0.00030136,2]
[311717990,1705351841151,-505.67458463,0.00030136,2]
[311717992,1705351841160,-356.58383934,0.00030136,2]
[311717994,1705351841169,-500.0,0.00030136,2]
[311717996,1705351841179,-500.0,0.00030136,2]
[311717998,1705351841188,-500.0,0.00030136,2]
[311718000,1705351841198,-500.0,0.00030136,2]
[311718002,1705351841208,-500.0,0.00030136,2]
[311718004,1705351841218,-500.0,0.00030136,2]
[311718006,1705351841228,-500.0,0.00030136,2]
[311718008,1705351841238,-500.0,0.00030136,2]
[311718010,1705351841247,-500.0,0.00030136,2]
[311718012,1705351841256,-208.84713893,0.00030136,2]
[311718013,1705351841265,-500.0,0.00030136,2]
[311718015,1705351841275,-500.0,0.00030136,2]
[311718016,1705351841285,-4534.31,0.00030136,2]
[311718017,1705351841294,-3020.64,0.00030136,2]
[311718018,1705351841304,-384.95782185,0.00030136,2]
[311718019,1705351841313,-500.49527847,0.00030136,2]
[311718020,1705351841323,-502.4278378,0.00030136,2]
[311718021,1705351841333,-502.22848087,0.00030136,2]
[311718022,1705351841343,-500.0,0.00030136,2]
[311718023,1705351841353,-500.0,0.00030136,2]
[311718024,1705351841363,-500.0,0.00030136,2]
[311718025,1705351841372,-500.0,0.00030136,2]
[311718026,1705351841382,-500.0,0.00030136,2]
[311718027,1705351841391,-500.0,0.00030136,2]
[311718028,1705351841400,-500.0,0.00030136,2]
[311718029,1705351841410,-500.0,0.00030136,2]
[311718030,1705351841419,-500.0,0.00030136,2]
[311718031,1705351841429,-500.0,0.00030136,2]
[311718032,1705351841438,-12031.8,0.00030136,2]
[311718033,1705351841448,-571.18,0.00030136,2]
[311718034,1705351841457,-500.0,0.00030136,2]
[311718035,1705351841466,-610.8,0.00030136,2]
[311718036,1705351841475,-528.16,0.00030136,2]
[311718037,1705351841484,-505.16618972,0.00030136,2]
[311718038,1705351841494,-353.20690116,0.00030136,2]
[311718039,1705351841503,-427.61481384,0.00030136,2]
[311718040,1705351841512,-500.0,0.00030136,2]
[311718041,1705351841521,-500.0,0.00030136,2]
[311718042,1705351841530,-204.94596919,0.00030136,2]
[311718043,1705351841540,-1397.71,0.00030136,2]
[311718044,1705351841550,-19314.89,0.00030136,2]
[311718045,1705351841559,-500.0,0.00030136,2]
[311718046,1705351841568,-500.0,0.00030136,2]
[311718047,1705351841577,-640.58,0.00030136,2]
[311718048,1705351841587,-500.0,0.00030136,2]
[311718049,1705351841596,-1606.49,0.00030136,2]
[311718050,1705351841605,-500.0,0.00030136,2]
[311718051,1705351841615,-500.0,0.00030136,2]
[311718052,1705351841624,-229.10235383,0.00030136,2]
[311718053,1705351841633,-500.0,0.00030136,2]
[311718054,1705351841642,-500.0,0.00030136,2]
[311718055,1705351841651,-500.0,0.00030136,5]
[311718056,1705351841660,-1214.33,0.00030136,2]
[311718057,1705351841669,-500.0,0.00030136,2]
[311718058,1705351841678,-500.0,0.00030136,2]
[311718059,1705351841688,-200.21982101,0.00030136,2]
[311718060,1705351841697,-500.0,0.00030136,2]
[311718062,1705351841706,-393.2744873,0.00030136,2]
[311718063,1705351841715,-500.0,0.00030136,2]
[311718064,1705351841724,-674.82,0.00030136,2]
[311718065,1705351841733,-500.0,0.00030136,2]
[311718066,1705351841742,-500.0,0.00030136,2]
[311718067,1705351841751,-512.2627489,0.00030136,2]
[311718068,1705351841760,-500.0,0.00030136,2]
[311718069,1705351841770,-624.39,0.00030136,2]
[311718070,1705351841779,-500.0,0.00030136,2]
[311718071,1705351841788,-509.18359272,0.00030136,2]
[311718072,1705351841797,-506.74811527,0.00030136,2]
[311718073,1705351841806,-512.04464966,0.00030136,2]
[311718074,1705351841816,-500.0,0.00030136,2]
[311718075,1705351841825,-500.0,0.00030136,2]
[311718076,1705351841834,-500.0,0.00030136,2]
[311718077,1705351841843,-523.319813,0.00030136,2]
[311718078,1705351841853,-500.0,0.00030136,2]
[311718080,1705351841862,-515.20044947,0.00030136,2]
[311718082,1705351841871,-500.0,0.00030136,2]
[311718083,1705351841880,-155.68386071,0.00030136,2]
[311718085,1705351841889,-555.37210289,0.00030136,2]
[311718086,1705351841898,-500.0,0.00030136,2]
[311718087,1705351841907,-556.45,0.00030136,2]
[311718088,1705351841916,-500.0,0.00030136,2]
[311718089,1705351841925,-501.13724917,0.00030136,2]
[311718090,1705351841933,-500.0,0.00030136,2]
[311718091,1705351841942,-500.0,0.00030136,2]
[311718092,1705351841951,-848.07,0.00030136,2]
[311718093,1705351841961,-4118.94,0.00030136,2]
[311718094,1705351841970,-500.0,0.00030136,2]
[311718095,1705351841979,-611.15,0.00030136,2]
[311718097,1705351841989,-500.0,0.00030136,2]
[311718099,1705351842000,-2246.28,0.00030136,2]
[311718101,1705351842009,-3070.13,0.00030136,2]
[311718103,1705351842018,-502.41032459,0.00030136,2]
[311718105,1705351842027,-997.51,0.00030136,2]
[311718114,1705351842037,-500.0,0.00030136,2]
[311718116,1705351842112,-500.0,0.00030136,2]
[311718118,1705351842122,-600.84545332,0.00030136,2]
[311718120,1705351842131,-500.0,0.00030136,2]
[311718122,1705351842141,-520.74257972,0.00030136,2]
[311718124,1705351842151,-500.0,0.00030136,2]
[311718126,1705351842160,-500.0,0.00030136,2]
[311718127,1705351842169,-503.26576196,0.00030136,2]
[311718129,1705351842178,-893.67,0.00030136,2]
[311718130,1705351842187,-500.0,0.00030136,2]
[311718132,1705351842197,-500.0,0.00030136,2]
[311718133,1705351842207,-5163.63,0.00030136,2]
[311718134,1705351842216,-536.0178926,0.00030136,2]
[311718135,1705351842225,-500.0,0.00030136,2]
[311718136,1705351842234,-500.0,0.00030136,2]
[311718137,1705351842244,-198.8577961,0.00030137,2]
[311718138,1705351842253,-198.8577961,0.00030137,2]
[311718139,1705351842262,-198.8577961,0.00030137,2]
[311718140,1705351842271,-198.8577961,0.00030137,2]
[311718141,1705351842280,-198.8577961,0.00030137,2]
[311718142,1705351842290,-198.8577961,0.00030137,2]
[311718143,1705351842299,-198.8577961,0.00030137,2]
[311718144,1705351842308,-196.4630613,0.00030137,2]
[311718145,1705351842318,-342.21624055,0.00030245,2]
[311718146,1705351842327,-436.66314263,0.00030245,2]
[311718147,1705351842336,-1000.0,0.00030245,7]
[311718148,1705351842346,-150.0,0.00030308,2]
[311718149,1705351842354,-262.84,0.00030409,2]
[311718150,1705351842363,-500.0,0.00030409,2]
[311718151,1705351842373,-500.0,0.00030409,2]
[311718152,1705351842382,-500.0,0.00030409,2]
[311718153,1705351842391,-500.0,0.0003041,2]
[311718154,1705351842401,-500.0,0.0003041,2]
[311718155,1705351842411,-575.45,0.0003041,2]
[311718156,1705351842420,-500.0,0.0003041,2]
[311718157,1705351842430,-500.0,0.0003041,2]
[311718158,1705351842439,-500.0,0.0003041,2]
[311718159,1705351842449,-571.08,0.0003041,2]
[311718160,1705351842458,-500.0,0.0003041,2]
[311718161,1705351842467,-500.0,0.0003041,2]
[311718162,1705351842477,-500.0,0.0003041,2]
[311718163,1705351842486,-500.0,0.0003041,2]
[311718164,1705351842496,-500.0,0.0003041,2]
[311718165,1705351842506,-500.0,0.0003041,2]
[311718166,1705351842515,-500.0,0.0003041,2]
[311718167,1705351842524,-500.0,0.0003041,2]
[311718168,1705351842534,-500.0,0.0003041,2]
[311718169,1705351842544,-500.0,0.0003041,2]
[311718170,1705351842553,-500.0,0.0003041,2]
[311718171,1705351842562,-547.64413327,0.0003041,2]
[311718172,1705351842572,-508.79321052,0.0003041,2]
[311718173,1705351842581,-1710.12,0.0003041,2]
[311718174,1705351842590,-500.0,0.0003041,2]
[311718175,1705351842599,-500.0,0.0003041,2]
[311718176,1705351842609,-500.0,0.0003041,2]
[311718177,1705351842619,-763.39,0.0003041,2]
[311718178,1705351842628,-500.0,0.0003041,2]
[311718179,1705351842639,-500.0,0.0003041,2]
[311718180,1705351842649,-500.0,0.0003041,2]
[311718181,1705351842660,-500.0,0.0003041,2]
[311718182,1705351842670,-500.0,0.0003041,2]
[311718183,1705351842680,-500.0,0.0003041,2]
[311718184,1705351842690,-150.0,0.0003041,2]
[311718185,1705351842700,-608.56,0.0003041,2]
[311718186,1705351842709,-587.3,0.0003041,2]
[311718187,1705351842719,-500.0,0.0003041,2]
[311718188,1705351842730,-500.0,0.0003041,2]
[311718189,1705351842740,-500.0,0.0003041,2]
[311718190,1705351842751,-500.0,0.0003041,2]